bitfinex-derivatives/quotes_ETHF0:USTF0_20250712
["timestamp","ask_amount","ask_price","bid_price","bid_amount"]
[1752304085651,1.5694,2963.8,2963.6,2.40971231]
[1752304085853,3.20582,2963.7,2963.6,2.40971231]
[1752304086050,2.5313,2963.7,2963.6,2.40971231]
[1752304086446,3.20585,2963.6,2963.5,3.96281231]
[1752304087755,3.20585,2963.6,2963.5,4.89411231]
[1752304089356,3.20585,2963.6,2963.5,2.4844]
[1752304089559,3.20585,2963.6,2963.5,4.89411231]
[1752304089761,3.20585,2963.6,2963.5,2.4844]
[1752304090756,3.20585,2963.6,2963.5,0.6408]
[1752304091457,3.20585,2963.6,2963.5,1.5531]
[1752304091658,3.20585,2963.6,2963.5,2.4844]
[1752304096461,3.20585,2963.6,2963.5,4.28651486]
[1752304102669,3.20585,2963.6,2963.5,2.4844]
[1752304103066,1.28705,2963.6,2963.5,2.4844]
[1752304103265,0.67455,2963.6,2963.5,2.4844]
[1752304103561,1.8869,2963.8,2963.5,1.31535]
[1752304103771,0.67452,2963.7,2963.6,3.40412686]
[1752304104371,0.67452,2963.7,2963.6,4.35982686]
[1752304104870,0.67452,2963.7,2963.6,5.03437686]
[1752304105170,0.67452,2963.7,2963.6,4.35982686]
[1752304105371,1.63212,2963.7,2963.6,4.35982686]
[1752304106269,2.56142,2963.7,2963.6,4.35982686]
[1752304106573,3.19262,2963.7,2963.6,4.35982686]
[1752304107173,3.19262,2963.7,2963.6,2.5584]
[1752304107872,0.67452,2963.7,2963.6,2.5584]
[1752304110776,2.26332,2963.7,2963.6,2.5584]
[1752304110976,3.19262,2963.7,2963.6,2.5584]
[1752304112376,3.19262,2963.7,2963.6,0.6154]
[1752304113169,3.19262,2963.7,2963.6,1.5711]
[1752304115377,3.19262,2963.7,2963.6,3.98081231]
[1752304115578,3.19262,2963.7,2963.6,3.02511231]
[1752304115778,3.19262,2963.7,2963.6,4.96811231]
[1752304118277,3.19262,2963.7,2963.6,3.02511231]
[1752304118478,3.19262,2963.7,2963.6,4.96811231]
[1752304125985,1.30572,2963.7,2963.6,4.96811231]
[1752304126188,0.67452,2963.7,2963.6,2.5584]
[1752304128084,0.67452,2963.7,2963.6,3.23295]
[1752304128285,4.1328,2963.9,2963.8,0.6232]
[1752304128476,4.80728,2963.9,2963.8,2.539]
[1752304128681,5.72418,2963.9,2963.8,4.94852525]
[1752304129182,6.38078,2963.9,2963.8,4.94852525]
[1752304129582,3.17298,2963.9,2963.8,4.94852525]
[1752304134582,0.67448,2963.9,2963.8,4.94852525]
[1752304134783,1.33097,2964.4,2964.3,2.539]
[1752304135089,1.33101,2964.2,2964.1,2.40696471]
[1752304135287,1.33103,2964.1,2964.0,3.98086471]
[1752304135585,2.25603,2964.1,2964.0,4.94596471]
[1752304135780,3.17293,2964.1,2964.0,2.539]
[1752304147491,3.17293,2964.1,2964.0,3.21346]
[1752304147795,2.4985,2964.1,2964.0,3.21346]
[1752304148000,0.67441,2964.2,2963.9,2.40696471]
[1752304148001,6.38064,2964.5,2964.4,2.539]
[1752304149396,3.17284,2964.5,2964.4,2.539]
[1752304150192,3.17284,2964.5,2964.4,4.34418816]
[1752304150894,3.17284,2964.5,2964.4,2.539]
[1752304153591,2.515,2964.3,2964.2,5.59867471]
[1752304154698,3.1916,2964.7,2964.6,2.4922]
[1752304154893,3.1916,2964.7,2964.6,4.29646053]
[1752304160402,3.1916,2964.7,2964.6,3.34576053]
[1752304161103,3.1916,2964.7,2964.6,4.27186053]
[1752304161404,3.1916,2964.7,2964.6,3.34576053]
[1752304161701,3.1916,2964.7,2964.6,1.80426053]
[1752304162098,3.1916,2964.7,2964.6,3.34576053]
[1752304162302,3.1916,2964.7,2964.6,4.27186053]
[1752304162798,3.1916,2964.7,2964.6,1.80426053]
[1752304163204,1.33322,2964.6,2964.5,1.80426053]
[1752304163406,3.24412,2964.6,2964.5,1.80426053]
[1752304167304,3.24412,2964.6,2964.5,3.34576053]
[1752304167506,3.24412,2964.6,2964.5,4.27186053]
[1752304169005,3.24412,2964.6,2964.5,1.80426053]
[1752304169703,0.67434,2964.5,2964.4,1.80426053]
[1752304169907,3.24414,2964.5,2964.4,1.80426053]
[1752304170101,0.67443,2964.1,2964.0,2.40696471]
[1752304170302,3.24423,2964.1,2964.0,3.94846471]
[1752304170511,3.24423,2964.1,2964.0,1.5415]
[1752304171009,3.24423,2964.1,2964.0,2.4676]
[1752304176314,0.67443,2964.1,2964.0,4.87456471]
[1752304179814,3.24423,2964.1,2964.0,4.87456471]
[1752304180208,3.24423,2964.1,2964.0,2.4676]
[1752304184121,4.48744,2964.5,2964.4,2.4876]
[1752304184320,6.39114,2964.5,2964.4,4.29444271]
[1752304191823,6.39114,2964.5,2964.4,1.80684271]
[1752304194831,1.27967,2964.4,2964.3,1.80684271]
[1752304195033,3.13887,2964.4,2964.3,1.80684271]
[1752304197133,1.27971,2964.2,2964.1,2.4686]
[1752304197433,49.70191,2964.2,2964.1,2.4686]
[1752304202131,0.67446,2964.0,2963.9,3.96846471]
[1752304202332,49.69096,2964.0,2963.9,4.87556471]
[1752304204235,49.69096,2964.0,2963.9,2.4686]
[1752304204433,3.13898,2963.9,2963.8,2.40696471]
[1752304204637,1.2798,2963.8,2963.7,2.40696471]
[1752304204836,49.685,2963.8,2963.7,2.40696471]
[1752304205136,3.13902,2963.7,2963.6,2.4686]
[1752304206934,3.13902,2963.7,2963.6,1.5615]
[1752304207128,3.13902,2963.7,2963.6,2.41379591]
[1752304207433,3.13902,2963.7,2963.6,1.80869591]
[1752304207832,3.13902,2963.7,2963.6,4.27729591]
[1752304208136,3.13902,2963.7,2963.6,2.4686]
[1752304208532,3.13905,2963.6,2963.5,1.80869591]
[1752304208738,2.21417,2963.5,2963.4,1.80869591]
[1752304208927,3.13907,2963.5,2963.4,1.80869591]
[1752304209132,3.13907,2963.5,2963.4,4.27729591]
[1752304209438,3.13907,2963.5,2963.4,2.4686]
[1752304211734,6.34687,2963.5,2963.4,2.4686]
[1752304214541,3.13907,2963.5,2963.4,2.4686]
[1752304215242,6.34687,2963.5,2963.4,2.4686]
[1752304216643,3.13907,2963.5,2963.4,2.4686]
[1752304216944,6.34687,2963.5,2963.4,2.4686]
[1752304217949,1.27987,2963.5,2963.4,2.4686]
[1752304219548,3.14807,2963.5,2963.4,2.4686]
[1752304225356,1.32202,2963.3,2963.2,4.33729591]
[1752304225546,52.91302,2963.3,2963.2,2.5286]
[1752304226052,1.32204,2963.2,2963.1,2.45689591]
[1752304226253,3.19024,2963.2,2963.1,2.45689591]
[1752304227153,3.19024,2963.2,2963.1,3.37929591]
[1752304227752,3.19024,2963.2,2963.1,2.45689591]
[1752304228343,3.19024,2963.2,2963.1,1.80869591]
[1752304228754,2.23836,2963.1,2963.0,2.45689591]
[1752304228959,49.70026,2963.1,2963.0,4.33729591]
[1752304229149,49.70026,2963.1,2963.0,2.5286]
[1752304243665,49.70026,2963.1,2963.0,1.5706]
[1752304245063,49.70026,2963.1,2963.0,2.5286]
[1752304245763,0.67468,2963.0,2962.9,3.02446471]
[1752304246066,3.22138,2963.0,2962.9,4.97206471]
[1752304247761,3.22138,2963.0,2962.9,4.00666471]
[1752304247967,1.29463,2962.8,2962.7,4.00666471]
[1752304248169,49.69743,2962.8,2962.7,4.97206471]
[1752304248669,49.69743,2962.8,2962.7,0.6175]
[1752304249066,49.69743,2962.8,2962.7,2.5651]
[1752304249965,49.69743,2962.8,2962.7,1.5997]
[1752304250661,49.69743,2962.8,2962.6,4.00666471]
[1752304250662,1.29465,2962.7,2962.6,4.00666471]
[1752304250965,3.22145,2962.7,2962.6,4.97206471]
[1752304251462,46.47,2962.7,2962.6,6.23226471]
[1752304251668,46.47,2962.7,2962.6,4.50008]
[1752304251870,46.47,2962.8,2962.7,1.29225]
[1752304252065,46.47,2962.9,2962.8,1.29223]
[1752304252266,46.47,2962.9,2962.8,3.03220711]
[1752304252460,47.14368,2963.0,2962.9,1.9476]
[1752304252667,47.14368,2963.0,2962.9,2.5651]
[1752304253768,49.07048,2963.0,2962.9,2.5651]
[1752304268590,49.07048,2963.0,2962.9,3.03111193]
[1752304268984,49.07048,2963.0,2962.9,2.41361193]
[1752304270692,52.27828,2963.0,2962.9,2.41361193]
[1752304271388,52.27828,2963.0,2962.7,1.9476]
[1752304271389,2.23821,2962.9,2962.8,2.41361193]
[1752304271689,3.22141,2962.9,2962.8,2.41361193]
[1752304272884,1.29463,2962.8,2962.7,4.97871193]
[1752304273092,49.65243,2962.8,2962.7,4.97871193]
[1752304273988,49.65243,2962.8,2962.7,2.5651]
[1752304275789,48.70883,2962.8,2962.7,2.5651]
[1752304275989,47.10573,2962.8,2962.7,2.5651]
[1752304278800,47.10573,2962.8,2962.7,4.97871193]
[1752304279900,49.00793,2962.8,2962.7,4.97871193]
[1752304280602,47.10573,2962.8,2962.7,4.97871193]
[1752304281297,3.2078,2963.7,2962.7,9.32248742]
[1752304281505,2.05346811,2963.6,2963.5,2.5304]
[1752304281803,0.67455,2963.6,2963.5,2.5304]
[1752304282402,1.29455,2963.6,2963.5,2.5304]
[1752304282599,3.19675,2963.6,2963.5,2.5304]
[1752304282796,0.67457,2963.5,2963.4,2.41361193]
[1752304283096,3.19677,2963.5,2963.4,1.5584]
[1752304283302,3.19677,2963.5,2963.4,0.6517]
[1752304284401,3.19677,2963.5,2963.4,2.45855546]
[1752304285504,3.19677,2963.5,2963.4,4.33725546]
[1752304291905,3.19677,2963.5,2963.4,1.80685546]
[1752304292509,26.39477,2963.5,2963.4,1.80685546]
[1752304293207,26.39477,2963.5,2963.4,3.43055546]
[1752304293408,26.39477,2963.5,2963.4,4.33725546]
[1752304294306,26.39477,2963.5,2963.4,2.45855546]
[1752304294907,26.39477,2963.5,2963.4,0.6517]
[1752304295205,26.39477,2963.5,2963.3,1.80685546]
[1752304295206,0.67459,2963.4,2963.3,1.80685546]
[1752304295413,1.29462,2963.3,2963.2,0.972]
[1752304295614,3.19682,2963.3,2963.2,0.972]
[1752304295909,3.19682,2963.3,2963.2,2.77748031]
[1752304296110,26.39182,2963.3,2963.2,2.77748031]
[1752304296304,26.39182,2963.3,2963.2,1.80548031]
[1752304299510,3.19682,2963.3,2963.2,4.33588031]
[1752304299710,3.19682,2963.3,2963.2,2.5304]
[1752304299909,3.19682,2963.3,2963.2,3.42969153]
[1752304300112,26.38982,2963.3,2963.2,4.33639153]
[1752304300416,0.67462,2963.3,2963.2,2.5304]
[1752304300914,3.19682,2963.3,2963.2,2.5304]
[1752304310120,0.67462,2963.3,2963.2,2.5304]
[1752304310623,0.67462,2963.3,2963.2,4.94401193]
[1752304312323,0.6746,2963.4,2963.3,3.20151]
[1752304312521,0.6746,2963.4,2963.3,8.82292193]
[1752304312713,0.6746,2963.4,2963.3,6.40931]
[1752304314921,3.1986,2963.4,2963.3,2.5269]
[1752304315128,3.1986,2963.4,2963.3,4.93817071]
[1752304317529,1.5854,2963.4,2963.3,4.93817071]
[1752304317828,0.67459,2963.4,2963.3,4.93802]
[1752304318122,0.67459,2963.4,2963.3,5.61264]
[1752304318324,0.67459,2963.4,2963.3,4.93802]
[1752304318520,3.19859,2963.4,2963.3,4.93802]
[1752304319329,3.19859,2963.4,2963.3,4.93790574]
[1752304319725,1.29759,2963.4,2963.3,5.61252574]
[1752304320227,0.67964731,2963.5,2963.4,2.23459]
[1752304320428,0.67964731,2963.5,2963.4,2.5269]
[1752304320630,0.67964731,2963.5,2963.4,3.20149]
[1752304320822,0.00505731,2963.5,2963.4,3.20149]
[1752304321028,0.67962731,2963.5,2963.4,3.20149]
[1752304321929,0.67962731,2963.5,2963.4,2.5269]
[1752304322532,3.20362731,2963.5,2963.4,2.5269]
[1752304322934,0.00505731,2963.5,2963.4,3.20149]
[1752304323328,0.67962731,2963.5,2963.4,3.20149]
[1752304324137,0.67962731,2963.5,2963.4,2.5269]
[1752304324328,1.901,2964.0,2963.5,0.9669]
[1752304324536,3.19846,2964.0,2963.9,4.3333432]
[1752304324729,3.19846,2964.0,2963.9,2.5269]
[1752304325231,2.23606,2964.0,2963.9,2.5269]
[1752304325636,3.19846,2964.0,2963.9,2.5269]
[1752304326334,1.61306,2964.0,2963.9,2.5269]
[1752304326529,2.57546,2964.0,2963.9,2.5269]
[1752304326725,3.19846,2964.0,2963.9,2.5269]
[1752304328930,3.1985,2963.8,2963.7,3.01989093]
[1752304329234,3.1985,2963.8,2963.7,1.5782]
[1752304329435,3.1985,2963.8,2963.7,2.5269]
[1752304330433,3.1985,2963.8,2963.7,1.5782]
[1752304330629,3.1985,2963.8,2963.7,0.6113]
[1752304330836,3.1985,2963.8,2963.7,1.5782]
[1752304331135,3.1985,2963.8,2963.7,2.5269]
[1752304331433,1.2975,2963.8,2963.7,2.5269]
[1752304332031,0.67449,2963.9,2963.7,1.28582]
[1752304332226,2.25986,2964.0,2963.9,0.6113]
[1752304332435,2.25986,2964.0,2963.9,4.33100969]
[1752304332733,3.19845,2964.1,2964.0,2.5269]
[1752304332936,3.19845,2964.1,2964.0,4.33070955]
[1752304333236,0.67445,2964.1,2964.0,2.5269]
[1752304333736,1.61305,2964.1,2964.0,4.33045825]
[1752304333934,3.20185,2964.1,2964.0,4.33045825]
[1752304334635,0.67442,2964.2,2964.0,3.08929825]
[1752304334936,0.67442,2964.2,2964.1,2.5314]
[1752304336041,3.21782,2964.2,2964.1,2.5314]
[1752304337439,3.21783,2964.1,2964.0,2.45335825]
[1752304337940,3.21783,2964.1,2964.0,3.38625825]
[1752304338133,3.21783,2964.1,2964.0,4.34635825]
[1752304342139,2.25203,2964.1,2964.0,4.34635825]
[1752304342340,2.25203,2964.1,2964.0,2.5428]
[1752304342642,3.21783,2964.1,2964.0,2.5428]
[1752304345547,0.9658,2964.3,2964.1,3.21722]
[1752304345748,2.25201,2964.2,2964.1,2.25712]
[1752304345949,3.21781,2964.2,2964.1,2.25712]
[1752304346150,3.21781,2964.2,2964.1,1.5827]
[1752304346350,2.5434,2964.2,2964.1,3.21723]
[1752304346550,0.67439,2964.3,2964.2,0.67439]
[1752304346750,0.67439,2964.3,2964.2,5.02189473]
[1752304347052,1.31737,2964.4,2964.3,1.32417]
[1752304347246,3.21777,2964.4,2964.3,5.02187473]
[1752304348544,3.21777,2964.4,2964.3,3.21717]
[1752304351353,3.21777,2964.4,2964.3,2.5428]
[1752304351557,3.21777,2964.4,2964.3,3.21719]
[1752304352154,3.21777,2964.4,2964.3,2.5428]
[1752304352858,3.21777,2964.4,2964.3,3.21719]
[1752304353249,2.5434,2964.4,2964.3,3.21719]
[1752304353451,2.5434,2964.4,2964.3,6.42499]
[1752304353648,74.9578,2965.2,2964.9,3.21705]
[1752304353649,0.643,2965.0,2964.9,3.21705]
[1752304353854,2.25182,2965.1,2965.0,1.893]
[1752304354054,3.21762,2965.1,2965.0,2.5428]
[1752304354255,5.49072,2965.5,2965.4,2.5428]
[1752304354459,6.24879676,2965.5,2965.4,2.5428]
[1752304354753,6.42532,2965.5,2965.4,2.5428]
[1752304355459,6.42532,2965.5,2965.4,4.34920579]
[1752304356156,3.21752,2965.5,2965.4,4.34920579]
[1752304356351,3.21752,2965.5,2965.4,2.5428]
[1752304356560,3.21989212,2965.5,2965.4,2.5428]
[1752304356760,3.21989212,2965.5,2965.4,4.34920579]
[1752304357154,3.21989212,2965.5,2965.4,2.5428]
[1752304358256,3.21989212,2965.5,2965.4,1.5827]
[1752304358455,3.21754,2965.4,2965.3,1.80640579]
[1752304358656,2.25176,2965.3,2965.2,1.80640579]
[1752304358855,6.42536,2965.3,2965.2,1.80640579]
[1752304359155,3.21756,2965.3,2965.2,1.80640579]
[1752304359356,3.21756,2965.3,2965.2,2.45620579]
[1752304359752,3.21756,2965.3,2965.2,3.38910579]
[1752304359959,3.21756,2965.3,2965.2,2.5428]
[1752304363261,1.31721,2965.1,2965.0,1.6099]
[1752304363458,3.23225,2964.9,2964.8,2.53825731]
[1752304363764,3.23225,2964.9,2964.8,0.65485731]
[1752304364261,3.23225,2964.9,2964.4,2.40859093]
[1752304364262,0.6566,2964.5,2964.4,1.08753093]
[1752304364460,1.61003,2964.1,2964.0,2.25848121]
[1752304364661,1.6101,2963.8,2963.7,6.6979684]
[1752304364966,0.001,2964.1,2964.0,1.6018]
[1752304365263,0.67543,2964.1,2964.0,2.5251]
[1752304365663,1.66893,2964.1,2964.0,2.5251]
[1752304365866,1.66893,2964.1,2964.0,1.565]
[1752304366061,1.669,2963.8,2963.7,2.5578]
[1752304366660,0.6745,2963.8,2963.7,0.6417]
[1752304366862,0.6745,2963.8,2963.7,1.565]
[1752304367466,0.6745,2963.8,2963.7,2.5578]
[1752304369071,0.6745,2963.9,2963.8,2.5578]
[1752304371564,0.67447,2964.0,2963.8,0.6417]
[1752304371768,0.67447,2964.0,2963.9,2.5578]
[1752304373861,1.66791,2964.2,2964.1,0.6417]
[1752304374063,1.66791,2964.2,2964.1,2.5578]
[1752304374466,0.6744,2964.3,2964.2,2.5578]
[1752304374769,49.4888,2964.6,2964.0,0.67444]
[1752304374770,4.2013,2964.6,2964.5,0.6417]
[1752304375071,4.87662,2964.6,2964.5,2.5578]
[1752304376769,1.66882,2964.6,2964.5,2.5578]
[1752304378475,0.67432,2964.6,2964.5,2.5578]
[1752304378676,1.66782,2964.6,2964.5,2.5578]
[1752304379177,0.67432,2964.6,2964.5,2.5578]
[1752304379371,0.67432,2964.6,2964.5,3.23214]
[1752304379574,0.67432,2964.6,2964.5,2.5578]
[1752304379775,1.66782,2964.6,2964.5,2.5578]
[1752304379978,0.67431,2964.7,2964.5,3.23214]
[1752304380172,0.6743,2964.7,2964.6,0.6417]
[1752304380377,0.6743,2964.7,2964.6,1.565]
[1752304380579,1.6688,2964.7,2964.6,1.565]
[1752304380778,1.6688,2964.7,2964.6,2.5578]
[1752304381376,0.6753,2964.7,2964.6,2.5578]
[1752304381572,0.9945,2964.9,2964.8,1.565]
[1752304381778,1.66877,2964.9,2964.8,2.5578]
[1752304390282,5.27931549,2965.7,2964.8,2.5578]
[1752304390283,3.407003,2966.7,2965.9,1.68506]
[1752304390482,3.26704,2966.7,2966.6,3.2078]
[1752304390685,3.35149667,2966.7,2966.1,4.2006]
[1752304390986,2.5932,2966.1,2966.0,1.565]
[1752304391194,3.35149667,2966.1,2966.0,2.5578]
[1752304391486,1.6128,2966.1,2966.0,2.5578]
[1752304391682,2.28678,2966.1,2966.0,2.5578]
[1752304391983,3.26718,2966.1,2966.0,1.565]
[1752304392187,2.28682,2965.9,2965.8,4.7728]
[1752304392386,3.26722,2965.9,2965.8,4.7728]
[1752304392685,0.6741,2965.6,2965.5,3.2078]
[1752304392888,0.6741,2965.6,2965.5,4.1311]
[1752304392889,3.2673,2965.6,2965.5,4.1311]
[1752304393084,3.2673,2965.6,2963.8,4.1728684]
[1752304393085,1.29353,2965.0,2964.9,3.36637228]
[1752304393386,1.6128,2965.0,2964.9,4.35917228]
[1752304393883,2.28703,2965.0,2964.9,2.5578]
[1752304394778,1.5941,2966.7,2966.6,2.5881]
[1752304394984,3.21874,2966.7,2966.6,1.5953]
[1752304395386,2.26794,2966.7,2966.6,2.4984]
[1752304395589,2.26794,2966.7,2966.6,1.5953]
[1752304395782,3.1664,2966.5,2966.4,1.5953]
[1752304395984,3.1664,2966.5,2966.4,1.60035731]
[1752304397489,3.9196817,2966.5,2966.4,1.60035731]
[1752304398189,2.9688817,2966.5,2966.4,2.50345731]
[1752304399184,2.2156,2966.5,2966.4,2.50345731]
[1752304400286,0.9508,2968.4,2967.0,0.9658]
[1752304400585,3.16609,2967.8,2967.7,0.6295]
[1752304403391,0.67358,2967.9,2967.7,0.6295]
[1752304403591,0.67358,2967.9,2967.8,5.7062]
[1752304403786,2.22498,2967.9,2967.8,5.7062]
[1752304404091,3.16608,2967.9,2967.8,4.7404]
[1752304404293,3.16608,2967.9,2967.8,3.8373]
[1752304404890,1.8919,2969.7,2969.6,0.9031]
[1752304405191,0.74997128,2969.7,2969.6,6.98557549]
[1752304405589,2.37393128,2969.7,2969.6,5.0767]
[1752304406193,2.64187128,2969.7,2969.6,3.2078]
[1752304406386,1.8919,2969.6,2969.4,0.00505731]
[1752304406585,3.31508128,2969.5,2969.4,0.00505731]
[1752304407791,2.56511,2969.5,2969.4,0.00505731]
[1752304409593,10.77291,2969.5,2969.4,7.31e-06]
[1752304409895,0.9508,2969.2,2969.0,1.8689]
[1752304410095,1.6241,2969.1,2969.0,1.8689]
[1752304410293,2.5652,2969.1,2969.0,0.9031]
[1752304410894,0.67332,2969.0,2968.9,3.2078]
[1752304411097,2.56522,2969.0,2968.9,4.1109]
[1752304411590,2.56522,2969.0,2968.6,3.2078]
[1752304411591,0.9508,2969.0,2968.6,3.2078]
[1752304411795,0.9411,2970.4,2969.1,0.9031]
[1752304411998,0.9411,2970.4,2970.0,1.8689]
[1752304412400,0.67294,2970.7,2970.3,1.8689]
[1752304412592,0.9411,2970.7,2970.2,3.2078]
[1752304412798,1.61406,2970.6,2970.5,0.9658]
[1752304413196,0.9411,2970.8,2970.2,3.2078]
[1752304413501,0.67303,2970.3,2970.2,3.2078]
[1752304413695,1.61413,2970.3,2970.2,4.1736]
[1752304414098,1.61413,2970.3,2970.2,0.9658]
[1752304414099,2.56493,2970.3,2970.2,0.9658]
[1752304414300,1.8919,2970.3,2969.9,5.0767]
[1752304414497,0.67309,2970.0,2969.9,4.1109]
[1752304414801,1.61419,2970.0,2969.9,5.0767]
[1752304415599,0.9411,2970.5,2969.9,3.2078]
[1752304415802,0.9411,2970.4,2970.1,1.8689]
[1752304416098,0.9411,2970.4,2970.0,0.9658]
[1752304416395,0.9411,2970.4,2970.0,1.63888]
[1752304416596,0.9411,2970.4,2970.1,0.9031]
[1752304416898,0.67305,2970.2,2970.1,0.9031]
[1752304417091,1.61415,2970.2,2970.1,1.8689]
[1752304418098,2.56495,2970.2,2970.1,0.9658]
[1752304418900,0.67309,2970.0,2969.9,3.2078]
[1752304419102,1.61419,2970.0,2969.9,0.9658]
[1752304419307,2.56499,2970.0,2969.9,0.9658]
[1752304419898,3.2078,2970.3,2969.6,3.2078]
[1752304420105,1.61433,2969.4,2969.3,5.0767]
[1752304420300,1.61433,2969.4,2969.3,4.1736]
[1752304420506,1.61433,2969.4,2969.3,5.0767]
[1752304420704,0.9411,2969.4,2969.3,5.0767]
[1752304420904,0.67322,2969.5,2969.3,3.2078]
[1752304421101,1.61431,2969.5,2969.4,1.8689]
[1752304422198,0.67321,2969.5,2969.4,1.8689]
[1752304422704,1.62403,2969.4,2969.3,3.2078]
[1752304422911,0.67345,2968.5,2968.3,0.9031]
[1752304423112,0.9411,2968.5,2968.4,1.8689]
[1752304423509,0.9411,2970.3,2969.3,0.9031]
[1752304423809,0.9411,2970.3,2970.0,0.9322]
[1752304424005,0.9411,2970.3,2970.2,0.9322]
[1752304424207,1.64899,2970.5,2970.2,1.8353]
[1752304424403,0.9411,2970.4,2970.3,0.9031]
[1752304424599,1.6141,2970.4,2970.3,1.8353]
[1752304424804,0.9411,2970.4,2970.0,0.9031]
[1752304425009,1.64906,2970.2,2970.0,1.8353]
[1752304425204,0.67298,2970.5,2970.1,0.67306]
[1752304425406,1.965,2970.6,2970.2,2.54425]
[1752304425607,0.67303,2970.3,2970.2,0.939]
[1752304425808,1.66203,2970.3,2970.2,1.8712]
[1752304426209,2.63803,2970.3,2970.2,0.9322]
[1752304426509,1.965,2970.3,2970.2,0.9322]
[1752304426806,0.67307,2970.1,2970.0,0.9322]
[1752304427002,1.66207,2970.1,2970.0,0.9322]
[1752304427803,9.16070535,2973.6,2970.3,0.9322]
[1752304428000,9.16070535,2973.6,2969.2,37.04044]
[1752304428001,2.97645267,2974.5,2972.7,3.2078]
[1752304428202,3.2078,2976.6,2974.5,0.9322]
[1752304428407,0.989,2976.3,2975.0,3.2078]
[1752304428611,0.989,2976.2,2975.9,3.2078]
[1752304428811,4.1968,2976.0,2975.3,0.88560269]
[1752304429016,3.2078,2975.5,2974.6,1.18080358]
[1752304429316,1.66097,2975.0,2974.9,1.18080358]
[1752304429512,1.66099,2974.9,2974.8,1.18080358]
[1752304429710,55.76379,2974.9,2974.8,0.46220198]
[1752304430010,14.10034977,2974.9,2974.8,0.46220198]
[1752304430206,66.94334977,2974.9,2974.8,0.46220198]
[1752304430402,67.24735977,2974.9,2973.9,1.18080358]
[1752304430612,0.989,2974.1,2973.8,3.05200358]
[1752304430813,0.67221,2973.9,2973.8,3.05200358]
[1752304431009,52.797,2974.1,2973.8,3.05200358]
[1752304431206,52.797,2974.1,2972.5,2.35867683]
[1752304431207,3.2078,2975.4,2974.0,3.2078]
[1752304431512,0.67205,2974.7,2974.5,3.2078]
[1752304431701,2.63705,2974.6,2974.5,3.2078]
[1752304431906,0.67219,2974.0,2973.9,4.14]
[1752304432103,1.965,2974.5,2973.9,5.079]
[1752304432413,7.18555977,2974.5,2973.9,5.079]
[1752304432613,0.67215,2974.2,2973.9,3.2078]
[1752304432913,7.18555977,2974.2,2973.9,5.079]
[1752304433104,0.67212,2974.4,2974.0,2.18641637]
[1752304433310,0.67212,2974.4,2974.3,3.2078]
[1752304433607,0.67212,2974.4,2974.3,0.31521637]
[1752304433608,5.89267977,2974.4,2974.3,0.31521637]
[1752304433810,7.85767977,2974.4,2974.3,0.31521637]
[1752304434108,1.68037,2974.2,2973.0,1.8712]
[1752304434308,0.976,2973.5,2973.0,1.8712]
[1752304434509,0.67239,2973.1,2973.0,1.8712]
[1752304435212,0.67242,2973.0,2972.8,4.14]
[1752304435408,0.67244,2973.0,2972.8,5.079]
[1752304435610,0.83194982,2973.0,2972.8,3.2078]
[1752304435803,0.67244,2972.9,2972.8,3.2078]
[1752304436008,0.67251,2972.6,2972.5,5.079]
[1752304436210,0.67251,2972.6,2969.9,1.68275]
[1752304436211,0.67268,2971.9,2971.4,0.939]
[1752304436412,3.2078,2971.9,2970.9,3.2078]
[1752304436608,0.6727,2971.8,2971.6,0.939]
[1752304436913,0.67273,2971.6,2971.1,0.939]
[1752304437108,4.1838,2971.7,2971.0,2.35867683]
[1752304437308,4.1838,2971.7,2971.3,0.939]
[1752304437508,4.1838,2971.7,2970.9,5.56647683]
[1752304437710,4.85652,2971.7,2971.0,0.939]
[1752304437915,0.67273,2971.6,2971.0,0.939]
[1752304438111,4.85651,2971.7,2971.3,2.35867683]
[1752304438309,0.67273,2971.6,2971.5,0.939]
[1752304438710,3.36147,2973.6,2971.5,0.939]
[1752304438711,4.1838,2972.1,2971.6,0.939]
[1752304438911,0.67264,2972.0,2971.5,3.29087683]
[1752304439212,0.67264,2972.0,2971.8,0.939]
[1752304439410,0.67267,2971.9,2971.7,0.9322]
[1752304439612,0.67266,2972.0,2971.7,0.9322]
[1752304439819,0.67266,2971.9,2971.7,0.9322]
[1752304440117,0.67266,2971.9,2971.8,0.939]
[1752304440414,0.67272,2971.7,2971.6,0.939]
[1752304440814,0.67272,2971.7,2971.6,1.82009521]
[1752304441314,1.965,2972.0,2971.6,1.82009521]
[1752304441512,1.965,2972.0,2971.7,0.88158531]
[1752304441513,0.976,2971.9,2971.7,0.88158531]
[1752304441713,0.6727,2971.8,2971.6,0.939]
[1752304441913,0.6727,2971.8,2971.7,0.88158441]
[1752304442717,3.2078,2971.8,2971.7,2.75278441]
[1752304442914,3.2078,2971.8,2971.7,10.3343699]
[1752304443106,0.67256,2972.4,2972.0,0.939]
[1752304443309,0.67258,2972.3,2972.2,0.939]
[1752304443510,0.67258,2972.3,2972.2,1.82058441]
[1752304443711,1.64858,2972.3,2972.2,1.82058441]
[1752304444416,5.84538,2972.3,2972.2,0.88158441]
[1752304444911,4.85638,2972.3,2972.2,0.88158441]
[1752304445116,0.976,2972.3,2972.2,1.82058441]
[1752304445515,1.64857,2972.3,2972.2,1.82058441]
[1752304445711,0.976,2972.3,2972.2,1.82058441]
[1752304445918,55.1108,2972.6,2972.3,0.939]
[1752304446112,55.1108,2972.6,2972.4,0.88158441]
[1752304446113,56.75932,2972.6,2972.4,0.88158441]
[1752304446414,56.75932,2972.6,2972.5,0.939]
[1752304446616,56.75932,2972.6,2972.5,1.8237759]
[1752304449918,57.74832,2972.6,2972.5,1.8237759]